fUSD/lending_fUSD_20240414
["ID","MTS","AMOUNT","RATE_DAILY","PERIOD"]
[322591628,1713091838558,-220.6182036,0.00042741,30]
[322591629,1713091838567,-161.88183102,0.00042757,30]
[322591630,1713091838576,-165.88157061,0.0004276,30]
[322591631,1713091838585,-1676.5,0.00042785,2]
[322591632,1713091838594,-161.88183102,0.00042833,30]
[322591633,1713091838603,-963.23175079,0.0004289,10]
[322591634,1713091838612,-153.6,0.00042922,2]
[322591635,1713091838621,-267.38,0.00042922,2]
[322591636,1713091838630,-300.0,0.00042922,2]
[322591637,1713091838640,-150.0,0.00042922,2]
[322591638,1713091838649,-349.88,0.00042922,2]
[322591639,1713091838658,-349.88,0.00042922,2]
[322591640,1713091838667,-185.51,0.00042922,2]
[322591641,1713091838676,-280.52187751,0.00042936,30]
[322591642,1713091838685,-154.99801969,0.00042956,30]
[322591643,1713091838695,-280.52187751,0.00042995,30]
[322591644,1713091838704,-1050.0,0.00043,3]
[322591645,1713091838713,-614.19,0.00043,4]
[322591646,1713091838722,-614.19,0.00043,4]
[322591647,1713091838731,-614.19,0.00043,4]
[322591648,1713091838740,-614.19,0.00043,4]
[322591649,1713091838749,-614.19,0.00043,4]
[322591650,1713091838758,-614.19,0.00043,4]
[322591651,1713091838767,-614.19,0.00043,4]
[322591652,1713091838776,-614.19,0.00043,4]
[322591653,1713091838785,-614.19,0.00043,4]
[322591654,1713091838795,-614.19,0.00043,4]
[322591655,1713091838804,-614.19,0.00043,4]
[322591656,1713091838813,-614.19,0.00043,4]
[322591657,1713091838822,-614.19,0.00043,4]
[322591658,1713091838831,-614.19,0.00043,4]
[322591659,1713091838840,-614.19,0.00043,4]
[322591660,1713091838849,-614.19,0.00043,4]
[322591661,1713091838858,-614.19,0.00043,4]
[322591662,1713091838867,-614.19,0.00043,4]
[322591663,1713091838876,-614.19,0.00043,4]
[322591664,1713091838886,-614.19,0.00043,4]
[322591665,1713091838894,-153.41,0.00043,4]
[322591666,1713091838903,-153.41,0.00043,4]
[322591667,1713091838912,-153.41,0.00043,4]
[322591668,1713091838920,-153.41,0.00043,4]
[322591669,1713091838930,-220.6182036,0.0004308,30]
[322591670,1713091838939,-280.52187751,0.00043098,30]
[322591671,1713091838948,-848.15056535,0.00043117,2]
[322591672,1713091838957,-157.12752826,0.0004316,30]
[322591673,1713091838967,-200.0,0.00043165,15]
[322591674,1713091838976,-500.0,0.00043165,20]
[322591675,1713091838985,-150.0,0.00043197,2]
[322591676,1713091838994,-222.0,0.000432,30]
[322591677,1713091839003,-351.0,0.000432,30]
[322591678,1713091839013,-161.88183102,0.00043219,30]
[322591679,1713091839022,-216.82,0.00043222,2]
[322591680,1713091839032,-155.15623,0.00043281,30]
[322591681,1713091839041,-280.52187751,0.00043418,30]
[322591682,1713091839050,-997.74,0.0004346,2]
[322591683,1713091839059,-220.6182036,0.00043463,30]
[322591684,1713091839068,-157.01983611,0.000435,30]
[322591685,1713091839078,-1798.19,0.00043507,15]
[322591686,1713091839086,-151.12724509,0.0004355,30]
[322591687,1713091839095,-150.04358553,0.00043556,30]
[322591688,1713091839104,-150.04358553,0.00043588,30]
[322591689,1713091839114,-280.52187751,0.00043603,30]
[322591690,1713091839123,-182.28907157,0.00043622,30]
[322591691,1713091839132,-151.12724509,0.0004363,30]
[322591692,1713091839141,-161.88183102,0.00043696,30]
[322591693,1713091839150,-166.66666668,0.00043716,30]
[322591694,1713091839159,-159.10805266,0.00043717,11]
[322591695,1713091839168,-150.0,0.00043744,2]
[322591696,1713091839178,-150.0,0.00043744,2]
[322591697,1713091839186,-150.0,0.00043744,2]
[322591698,1713091839196,-154.99801969,0.00043767,30]
[322591699,1713091839205,-306.46,0.0004378,2]
[322591700,1713091839214,-2490.20860659,0.000438,2]
[322591701,1713091839223,-2000.0,0.000438,2]
[322591702,1713091839232,-1000.0,0.00043835,2]
[322591703,1713091839242,-2476.32,0.00043836,2]
[322591704,1713091839254,-150.24,0.00043836,2]
[322591705,1713091839265,-220.6182036,0.00043862,30]
[322591706,1713091839275,-442.25500705,0.00043989,30]
[322591707,1713091839284,-715.17033749,0.0004399,4]
[322591708,1713091839295,-150.0,0.00044,44]
[322591709,1713091839305,-358.8,0.00044015,2]
[322591710,1713091839314,-161.88183102,0.00044025,30]
[322591711,1713091839323,-509.0,0.00044109,7]
[322591712,1713091839333,-6331.16,0.00044111,120]
[322591713,1713091839342,-155.46548869,0.00044208,30]
[322591714,1713091839351,-150.04358553,0.0004422,30]
[322591715,1713091839360,-156.88723513,0.00044234,30]
[322591716,1713091839369,-154.99801969,0.00044265,30]
[322591717,1713091839378,-150.04358553,0.00044284,30]
[322591718,1713091839389,-154.99801969,0.00044353,30]
[322591719,1713091839398,-161.88183102,0.00044365,30]
[322591720,1713091839408,-154.99801969,0.0004438,30]
[322591721,1713091839417,-155.68972589,0.00044404,30]
[322591722,1713091839426,-150.04358553,0.00044436,30]
[322591723,1713091839435,-848.15056535,0.00044446,2]
[322591724,1713091839444,-1000.0,0.0004449,2]
[322591725,1713091839454,-159.10805262,0.00044502,11]
[322591726,1713091839463,-150.04358553,0.00044503,30]
[322591727,1713091839473,-156.3106271,0.0004451,30]
[322591728,1713091839482,-171.86705513,0.00044624,30]
[322591729,1713091839492,-200.0,0.00044665,25]
[322591730,1713091839501,-500.0,0.00044665,30]
[322591731,1713091839510,-200.0,0.00044665,30]
[322591732,1713091839520,-190.85,0.00044701,2]
[322591733,1713091839529,-151.12724509,0.00044713,30]
[322591734,1713091839539,-157.32897233,0.00044759,30]
[322591735,1713091839549,-161.88183102,0.00044778,30]
[322591736,1713091839558,-154.99801969,0.00044795,30]
[322591737,1713091839568,-161.88183102,0.00044908,30]
[322591738,1713091839577,-151.12724509,0.00044926,30]
[322591740,1713091839586,-151.12724509,0.0004493,30]
[322591741,1713091839595,-5000.0,0.00044986,4]
[322591742,1713091839605,-782.09175157,0.00045,120]
[322591743,1713091839614,-211.12211932,0.00045,4]
[322591744,1713091839624,-1100.0,0.00045,3]
[322591745,1713091839633,-5409.04776829,0.00045,5]
[322591746,1713091839642,-150.04358553,0.00045093,30]
[322591747,1713091839651,-220.6182036,0.00045099,30]
[322591748,1713091839660,-997.74,0.00045125,2]
[322591749,1713091839669,-151.12724509,0.00045143,30]
[322591750,1713091839679,-166.75619801,0.00045174,30]
[322591751,1713091839688,-1000.0,0.00045205,2]
[322591752,1713091839697,-220.6182036,0.00045223,30]
[322591753,1713091839706,-151.12724509,0.00045227,30]
[322591754,1713091839714,-159.10805262,0.00045288,12]
[322591755,1713091839723,-280.52187751,0.000453,30]
[322591756,1713091839732,-280.52187751,0.00045474,30]
[322591757,1713091839741,-512.0,0.00045479,30]
[322591758,1713091839750,-306.46,0.00045525,2]
[322591759,1713091839759,-150.0,0.000456,8]
[322591760,1713091839769,-161.88183102,0.00045639,30]
[322591761,1713091839778,-155.68972589,0.00045642,30]
[322591762,1713091839788,-155.15623,0.00045661,30]
[322591763,1713091839797,-150.24,0.00045662,2]
[322591766,1713091839806,-220.6182036,0.00045702,30]
[322591768,1713091839816,-220.6182036,0.00045733,30]
[322591770,1713091839825,-154.99801969,0.00045756,30]
[322591772,1713091839834,-848.15056535,0.00045775,2]
[322591774,1713091839843,-157.01983611,0.00045886,30]
[322591776,1713091839852,-151.12724509,0.00045893,30]
[322591778,1713091839862,-258.75692262,0.00045938,18]
[322591780,1713091839871,-36543.95706785,0.00046,36]
[322591793,1713091840731,-4594.8842558,0.00046,36]
[322591794,1713091840871,-8861.15867635,0.00046,36]
[322591795,1713091840881,-50000.0,0.00046,46]
[322591796,1713091840891,-157.12752826,0.00046038,30]
[322591797,1713091840900,-161.88183102,0.00046056,30]
[322591798,1713091840909,-159.10805262,0.00046073,12]
[322591799,1713091840918,-150.0,0.000461,8]
[322591800,1713091840927,-151.12724509,0.00046128,30]
[322591801,1713091840936,-200.0,0.00046165,25]
[322591802,1713091840945,-500.0,0.00046165,30]
[322591803,1713091840954,-220.6182036,0.00046218,30]
[322591804,1713091840963,-1798.19,0.00046247,15]
[322591805,1713091840972,-358.8,0.00046279,2]
[322591806,1713091840982,-614.19,0.000463,5]
[322591807,1713091840992,-614.19,0.000463,5]
[322591808,1713091841001,-614.19,0.000463,5]
[322591809,1713091841010,-614.19,0.000463,5]
[322591810,1713091841019,-614.19,0.000463,5]
[322591811,1713091841029,-614.19,0.000463,5]
[322591812,1713091841038,-614.19,0.000463,5]
[322591813,1713091841050,-614.19,0.000463,5]
[322591814,1713091841059,-614.19,0.000463,5]
[322591815,1713091841068,-614.19,0.000463,5]
[322591816,1713091841077,-614.19,0.000463,5]
[322591817,1713091841086,-614.19,0.000463,5]
[322591818,1713091841095,-614.19,0.000463,5]
[322591819,1713091841105,-614.19,0.000463,5]
[322591820,1713091841114,-614.19,0.000463,5]
[322591821,1713091841123,-614.19,0.000463,5]
[322591822,1713091841133,-614.19,0.000463,5]
[322591823,1713091841142,-614.19,0.000463,5]
[322591824,1713091841152,-614.19,0.000463,5]
[322591825,1713091841161,-614.19,0.000463,5]
[322591826,1713091841170,-153.41,0.000463,5]
[322591827,1713091841180,-153.41,0.000463,5]
[322591828,1713091841190,-153.41,0.000463,5]
[322591829,1713091841200,-153.41,0.000463,5]
[322591830,1713091841211,-154.99801969,0.00046324,30]
[322591831,1713091841221,-280.52187751,0.00046405,30]
[322591832,1713091841231,-155.15623,0.0004641,30]
[322591833,1713091841550,-151.12724509,0.0004649,30]
[322591834,1713091841561,-151.12724509,0.00046494,30]
[322591835,1713091841571,-1000.0,0.00046575,2]
[322591836,1713091841583,-1000.0,0.000466,4]
[322591837,1713091841592,-1513.25356655,0.000466,7]
[322591838,1713091841601,-150.0,0.000466,8]
[322591839,1713091841611,-2000.0,0.000466,2]
[322591840,1713091841620,-157.041419,0.00046648,78]
[322591841,1713091841629,-161.88183102,0.00046661,30]
[322591842,1713091841639,-161.88183102,0.00046686,30]
[322591843,1713091841648,-155.15623,0.00046746,30]
[322591844,1713091841657,-157.041419,0.00046748,79]
[322591845,1713091841670,-997.74,0.0004679,2]
[322591846,1713091841681,-157.041419,0.00046848,81]
[322591847,1713091841691,-159.10805262,0.00046859,12]
[322591848,1713091841702,-157.041419,0.00046898,80]
[322591849,1713091841712,-150.04358553,0.00046907,30]
[322591850,1713091841721,-157.041419,0.00046948,81]
[322591851,1713091841731,-220.6182036,0.00046967,30]
[322591852,1713091841741,-1258.07,0.0004699,2]
[322591853,1713091841751,-50000.0,0.00047,47]
[322591854,1713091841761,-50000.0,0.00047,37]
[322591855,1713091841771,-21579.35662141,0.00047,120]
[322591856,1713091841780,-10840.57243603,0.00047,120]
[322591857,1713091841791,-1150.0,0.00047,3]
[322591858,1713091841801,-1000.0,0.00047,7]
[322591859,1713091841811,-1000.0,0.0004701,7]
[322591860,1713091841821,-165.96780529,0.00047013,30]
[322591861,1713091841831,-280.52187751,0.00047069,30]
[322591862,1713091841841,-161.88183102,0.00047086,30]
[322591863,1713091841851,-157.041419,0.00047098,81]
[322591864,1713091841860,-150.0,0.000471,9]
[322591865,1713091841870,-848.15056535,0.00047105,2]
[322591866,1713091841879,-150.04358553,0.00047127,30]
[322591867,1713091841889,-157.041419,0.00047148,82]
[322591868,1713091841899,-155.68972589,0.00047148,30]
[322591869,1713091841909,-154.78946014,0.00047155,30]
[322591870,1713091841919,-151.12724509,0.00047187,30]
[322591871,1713091841928,-151.12724509,0.00047213,30]
[322591872,1713091841938,-306.46,0.0004727,2]
[322591873,1713091841947,-157.041419,0.00047298,82]
[322591874,1713091841956,-150.04358553,0.00047326,30]
[322591875,1713091841966,-151.12724509,0.00047336,30]
[322591876,1713091841976,-154.99801969,0.00047337,30]
[322591877,1713091841985,-157.041419,0.00047348,83]
[322591878,1713091841995,-1222.21128161,0.00047397,2]
[322591879,1713091842004,-161.88183102,0.00047398,30]
[322591880,1713091842014,-161.88183102,0.00047447,30]
[322591881,1713091842023,-157.041419,0.00047448,84]
[322591882,1713091842032,-280.52187751,0.00047458,30]
[322591883,1713091842042,-154.99801969,0.00047472,30]
[322591884,1713091842052,-155.68972589,0.00047482,30]
[322591885,1713091842062,-150.24,0.00047489,2]
[322591886,1713091842072,-157.041419,0.00047498,83]
[322591887,1713091842082,-280.52187751,0.00047514,30]
[322591888,1713091842091,-157.041419,0.00047548,85]
[322591889,1713091842101,-161.88183102,0.00047548,30]
[322591890,1713091842110,-150.0,0.000476,9]
[322591891,1713091842120,-155.46548869,0.00047631,30]
[322591892,1713091842130,-159.10805262,0.00047644,13]
[322591893,1713091842140,-3285.59603356,0.0004766,2]
[322591894,1713091842149,-1258.07,0.00047661,2]
[322591895,1713091842158,-200.0,0.00047666,25]
[322591896,1713091842168,-200.0,0.00047666,25]
[322591897,1713091842178,-500.0,0.00047666,30]
[322591898,1713091842187,-200.0,0.00047666,30]
[322591899,1713091842197,-159.98891828,0.00047669,30]
[322591900,1713091842206,-597.05,0.00047671,120]
[322591901,1713091842215,-597.05,0.00047671,120]
[322591902,1713091842224,-597.05,0.00047671,120]
[322591903,1713091842233,-597.05,0.00047671,120]
[322591904,1713091842242,-597.05,0.00047671,120]
[322591905,1713091842252,-597.05,0.00047671,120]
[322591906,1713091842265,-597.05,0.00047671,120]
[322591907,1713091842275,-597.05,0.00047671,120]
[322591908,1713091842284,-597.05,0.00047671,120]
[322591909,1713091842294,-597.05,0.00047671,120]
[322591910,1713091842304,-597.05,0.00047671,120]
[322591911,1713091842313,-597.05,0.00047671,120]
[322591912,1713091842323,-597.05,0.00047671,120]
[322591913,1713091842334,-597.05,0.00047671,120]
[322591914,1713091842344,-597.05,0.00047671,120]
[322591915,1713091842353,-597.05,0.00047671,120]
[322591916,1713091842362,-597.05,0.00047671,120]
[322591917,1713091842372,-597.05,0.00047671,120]
[322591918,1713091842381,-597.05,0.00047671,120]
[322591919,1713091842391,-597.05,0.00047671,120]
[322591920,1713091842401,-597.05,0.00047671,120]
[322591921,1713091842410,-597.05,0.00047671,120]
[322591922,1713091842420,-597.05,0.00047671,120]
[322591923,1713091842437,-597.19057246,0.00047671,120]
[322591924,1713091842460,-157.041419,0.00047698,84]
[322591925,1713091842481,-1222.21128161,0.00047723,2]
[322591926,1713091842504,-157.041419,0.00047748,86]
[322591927,1713091842528,-150.04358553,0.00047842,30]
[322591928,1713091842555,-166.690532,0.00047878,60]
[322591929,1713091842579,-300.0,0.00047889,7]
[322591930,1713091842590,-159.98891828,0.00047894,30]
[322591932,1713091842601,-157.041419,0.00047898,85]
[322591934,1713091842610,-3285.59603356,0.00047899,2]
[322591937,1713091842620,-150.0,0.000479,120]
[322591939,1713091842630,-1026.46045429,0.00047902,10]
[322591940,1713091842640,-1073.80935309,0.00047902,10]
[322591941,1713091842650,-220.6182036,0.00047923,30]
[322591943,1713091842659,-1000.0,0.00047945,2]
[322591945,1713091842669,-157.041419,0.00047948,87]
[322591947,1713091842679,-155.15623,0.00047971,30]
[322591949,1713091842689,-220.6182036,0.0004798,30]
[322591951,1713091842698,-280.52187751,0.00047985,30]
[322591953,1713091842708,-50000.0,0.00048,38]
[322591954,1713091842717,-50000.0,0.00048,48]
[322591955,1713091842727,-285.28363121,0.00048,120]
[322591956,1713091842736,-1000.0,0.00048,7]
[322591957,1713091842745,-280.52187751,0.00048016,30]
[322591958,1713091842755,-216.82,0.00048025,2]
[322591960,1713091842764,-156.88723514,0.00048047,30]
[322591961,1713091842774,-150.01,0.0004805,2]
[322591962,1713091842783,-4444.80439469,0.0004805,2]
[322591963,1713091842793,-157.041419,0.00048098,86]
[322591964,1713091842804,-150.0,0.000481,9]
[322591965,1713091842813,-1000.0,0.000481,7]
[322591966,1713091842822,-150.0,0.00048105,7]
[322591967,1713091842832,-150.0,0.00048148,7]
[322591968,1713091842841,-157.041419,0.00048148,88]
[322591969,1713091842850,-150.0,0.00048165,7]
[322591970,1713091842859,-150.0,0.0004817,7]
[322591971,1713091842869,-154.99801969,0.00048173,30]
[322591972,1713091842878,-150.0,0.00048191,7]
[322591973,1713091842887,-1050.0,0.000482,4]
[322591974,1713091842896,-150.0,0.00048205,7]
[322591975,1713091842905,-150.0,0.00048212,7]
[322591976,1713091842915,-150.0,0.00048213,7]
[322591977,1713091842924,-150.0,0.00048237,7]
[322591978,1713091842934,-150.0,0.00048241,7]
[322591979,1713091842943,-150.0,0.00048244,7]
[322591980,1713091842953,-150.0,0.00048247,7]
[322591981,1713091842962,-1222.21128161,0.00048251,2]
[322591982,1713091842971,-151.12724509,0.00048261,30]
[322591984,1713091842980,-150.0,0.00048284,7]
[322591986,1713091842989,-150.0,0.00048288,7]
[322591988,1713091842998,-150.0,0.00048297,7]
[322591989,1713091843007,-157.041419,0.00048298,87]
[322591990,1713091843018,-150.0,0.000483,7]
[322591991,1713091843027,-150.0,0.000483,7]
[322591992,1713091843037,-150.0,0.00048303,7]
[322591993,1713091843049,-150.0,0.00048304,7]
[322591994,1713091843058,-150.0,0.00048305,7]
[322591995,1713091843067,-150.0,0.00048305,7]
[322591996,1713091843077,-3285.59603357,0.00048309,2]
[322591997,1713091843087,-150.0,0.00048316,7]
[322591998,1713091843096,-150.0,0.00048318,7]
[322591999,1713091843106,-151.12724509,0.00048318,30]
[322592000,1713091843115,-150.0,0.00048322,7]
[322592001,1713091843125,-150.0,0.00048323,7]
[322592002,1713091843134,-150.0,0.00048327,7]
[322592003,1713091843143,-150.0,0.00048339,7]
[322592004,1713091843153,-157.041419,0.00048348,88]
[322592005,1713091843163,-157.041419,0.00048348,89]
[322592006,1713091843173,-150.0,0.00048352,7]
[322592007,1713091843183,-150.0,0.00048368,7]
[322592008,1713091843192,-150.0,0.0004837,7]
[322592009,1713091843201,-150.0,0.00048373,7]
[322592010,1713091843210,-150.0,0.00048379,7]
[322592011,1713091843221,-150.0,0.00048384,7]
[322592012,1713091843231,-157.12752826,0.00048394,30]
[322592013,1713091843240,-150.04358553,0.00048395,30]
[322592014,1713091843250,-150.0,0.00048398,7]
[322592015,1713091843263,-150.0,0.00048398,7]
[322592016,1713091843272,-150.0,0.00048399,7]
[322592017,1713091843281,-150.0,0.00048399,7]
[322592018,1713091843290,-7391.97887061,0.000484,2]
[322592019,1713091843303,-151.12724509,0.00048401,30]
[322592020,1713091843313,-151.12724509,0.00048402,30]
[322592021,1713091843322,-150.0,0.00048409,7]
[322592022,1713091843333,-150.0,0.00048412,7]
[322592023,1713091843343,-150.0,0.00048419,7]
[322592024,1713091843352,-159.10805262,0.0004843,13]
[322592025,1713091843361,-848.15056535,0.00048434,2]
[322592026,1713091843370,-11025.75,0.00048438,6]
[322592027,1713091843379,-150.0,0.0004844,7]
[322592028,1713091843388,-150.0,0.00048455,7]
[322592029,1713091843398,-150.0,0.00048455,7]
[322592030,1713091843407,-997.74,0.00048455,2]
[322592031,1713091843417,-150.0,0.00048457,7]
[322592032,1713091843427,-150.0,0.0004846,7]
[322592033,1713091843436,-150.0,0.00048465,7]
[322592034,1713091843445,-150.0,0.00048477,7]
[322592035,1713091843455,-151.12724509,0.00048483,30]
[322592036,1713091843464,-150.0,0.00048491,7]
[322592038,1713091843473,-176.26038041,0.00048491,7]
[322592039,1713091843483,-150.0,0.00048492,7]
[322592040,1713091843492,-157.041419,0.00048498,88]
[322592041,1713091843501,-150.0,0.00048499,7]
[322592042,1713091843510,-557.0,0.000485,30]
[322592043,1713091843520,-583.0,0.000485,30]
[322592044,1713091843529,-150.0,0.00048501,7]
[322592045,1713091843538,-150.0,0.00048507,7]
[322592046,1713091843548,-150.0,0.00048515,7]
[322592047,1713091843557,-300.0,0.00048519,7]
[322592048,1713091843567,-280.52187751,0.00048521,30]
[322592049,1713091843576,-1000.0,0.00048535,2]
[322592050,1713091843586,-358.8,0.00048543,2]
[322592051,1713091843595,-150.0,0.00048548,7]
[322592052,1713091843604,-150.0,0.00048551,7]
[322592053,1713091843613,-150.0,0.00048559,7]
[322592054,1713091843622,-150.0,0.00048569,7]
[322592055,1713091843631,-150.04358553,0.00048587,30]
[322592056,1713091843640,-150.0,0.0004859,7]
[322592057,1713091843649,-150.0,0.0004859,7]
[322592058,1713091843659,-150.0,0.00048594,7]
[322592059,1713091843667,-150.0,0.000486,9]
[322592060,1713091843676,-300.0,0.0004861,7]
[322592061,1713091843685,-300.0,0.00048611,7]
[322592062,1713091843695,-150.0,0.00048615,7]
[322592063,1713091843704,-1134.104688,0.00048615,7]
[322592064,1713091843713,-150.0,0.00048618,7]
[322592065,1713091843722,-150.0,0.00048623,7]
[322592066,1713091843731,-150.0,0.00048624,7]
[322592067,1713091843740,-150.0,0.00048638,7]
[322592068,1713091843749,-150.0,0.00048639,7]
[322592069,1713091843758,-150.0,0.00048648,7]
[322592070,1713091843767,-150.0,0.00048655,7]
[322592071,1713091843776,-150.0,0.00048657,7]
[322592072,1713091843785,-150.0,0.00048659,7]
[322592073,1713091843794,-150.0,0.00048659,7]
[322592074,1713091843805,-150.0,0.00048662,7]
[322592075,1713091843814,-220.6182036,0.00048662,30]
[322592076,1713091843823,-150.0,0.00048664,7]
[322592077,1713091843834,-150.0,0.0004867,7]
[322592078,1713091843843,-150.0,0.00048679,7]
[322592079,1713091843852,-1222.21128162,0.0004868,2]
[322592080,1713091843862,-154.99801969,0.00048682,30]
[322592081,1713091843871,-150.0,0.00048684,7]
[322592082,1713091843880,-150.04358553,0.00048687,30]
[322592083,1713091843889,-150.0,0.00048692,7]
[322592084,1713091843898,-150.0,0.00048693,7]
[322592085,1713091843907,-150.0,0.00048694,7]
[322592086,1713091843915,-157.041419,0.00048698,89]
[322592087,1713091843925,-111323.98498079,0.000487,30]
[322592088,1713091843933,-152.13394888,0.00048711,7]
[322592089,1713091843942,-150.0,0.00048712,7]
[322592090,1713091843951,-150.0,0.00048714,7]
[322592091,1713091843960,-150.0,0.00048714,7]
[322592092,1713091843969,-161.88183102,0.00048716,30]
[322592093,1713091843978,-1500.0,0.00048724,7]
[322592094,1713091843986,-150.0,0.00048727,7]
[322592095,1713091843995,-154.99801969,0.00048728,30]
[322592096,1713091844004,-150.0,0.00048729,7]
[322592097,1713091844014,-500.0,0.0004873,4]
[322592098,1713091844023,-500.0,0.0004873,4]
[322592099,1713091844032,-500.0,0.0004873,4]
[322592100,1713091844043,-500.0,0.0004873,4]
[322592101,1713091844054,-500.0,0.0004873,4]
[322592102,1713091844063,-500.0,0.0004873,4]
[322592103,1713091844072,-500.0,0.0004873,4]
[322592104,1713091844081,-500.0,0.0004873,4]
[322592105,1713091844091,-500.0,0.0004873,4]
[322592106,1713091844100,-500.0,0.0004873,4]
[322592107,1713091844110,-500.0,0.0004873,4]
[322592108,1713091844119,-500.0,0.0004873,4]
[322592109,1713091844129,-500.0,0.0004873,4]
[322592110,1713091844139,-392.0,0.0004873,4]
[322592111,1713091844148,-150.0,0.00048734,7]
[322592112,1713091844157,-150.0,0.00048734,7]
[322592113,1713091844166,-150.0,0.00048735,7]
[322592114,1713091844176,-150.0,0.00048738,7]
[322592115,1713091844185,-150.0,0.00048742,7]
[322592116,1713091844194,-150.0,0.00048754,7]
[322592117,1713091844204,-150.0,0.0004877,7]
[322592118,1713091844213,-125780.8937,0.00048779,2]
[322592119,1713091844222,-189.1268,0.00048779,2]
[322592120,1713091844231,-150.0,0.00048779,7]
[322592121,1713091844240,-4301.904,0.0004878,10]
[322592122,1713091844249,-187.69455529,0.0004878,120]
[322592123,1713091844261,-281.3672766,0.0004878,2]
[322592124,1713091844270,-410.24773488,0.0004878,2]
[322592125,1713091844279,-876.19235202,0.0004878,2]
[322592126,1713091844288,-150.0,0.00048786,7]
[322592127,1713091844299,-150.0,0.00048786,7]
[322592128,1713091844308,-482.0,0.000488,37]
[322592129,1713091844317,-3926.48139705,0.000488,120]
[322592130,1713091844327,-482.0,0.000488,37]
[322592131,1713091844337,-150.0,0.00048802,7]
[322592132,1713091844346,-150.0,0.00048805,7]
[322592133,1713091844355,-150.0,0.00048819,7]
[322592134,1713091844364,-150.0,0.0004882,7]
[322592135,1713091844374,-300.0,0.00048825,7]
[322592136,1713091844383,-150.0,0.00048833,7]
[322592137,1713091844392,-150.0,0.00048836,7]
[322592138,1713091844402,-150.0,0.00048838,7]
[322592139,1713091844411,-150.0,0.0004884,7]
[322592140,1713091844421,-150.0,0.00048843,7]
[322592141,1713091844430,-1500.0,0.00048843,7]
[322592142,1713091844439,-150.0,0.00048846,7]
[322592143,1713091844448,-150.0,0.00048857,7]
[322592144,1713091844458,-150.0,0.00048866,7]
[322592145,1713091844467,-150.0,0.00048867,7]
[322592146,1713091844477,-150.0,0.00048869,7]
[322592147,1713091844486,-150.0,0.00048875,7]
[322592148,1713091844499,-5672.99698819,0.00048877,2]
[322592149,1713091844508,-5242.01546849,0.00048877,10]
[322592150,1713091844517,-20189.0893382,0.00048877,2]
[322592151,1713091844527,-2417.36952819,0.00048878,120]
[322592152,1713091844536,-155.0,0.00048878,4]
[322592153,1713091844545,-150.0,0.00048878,60]
[322592154,1713091844555,-753531.56176236,0.00048879,61]
[322592155,1713091844564,-273.15145664,0.00048879,4]
[322592156,1713091844574,-611.44133086,0.00048879,20]
[322592157,1713091844583,-709925.72592144,0.00048879,2]
[322592158,1713091844593,-2739.29424175,0.00048879,4]
[322592159,1713091844604,-150.0,0.00048879,7]
[322592160,1713091844613,-2535.55419299,0.0004888,31]
[322592161,1713091844622,-7224.47,0.0004888,5]
[322592162,1713091844631,-642923.20350797,0.0004888,7]
[322592163,1713091844646,-269840.67253395,0.0004888,7]
[322592164,1713091844708,-861.27723185,0.0004888,7]
[322592165,1713091844883,-1660.60031835,0.0004888,7]